{"text_format":"1","workbook":"xlsx","n_sheets":1,"sheets":["Sheet1"],"not_rendered":{"charts":0,"images":2,"macros":0,"external_links":0,"defined_names":1,"comments":0,"pivot_tables":0},"unopened":[],"bounds":{"document_bytes":16777216,"sheet_cells":100000,"rows_first":2000,"rows_last":500,"rows_between":2000,"halvings":0,"cell_chars":16384,"cell_head_chars":4096},"cells_cut":0,"cells_raw":0,"read":"whole","date_system":"1900"}

{"sheet":"Sheet1","index":0,"n_rows":134,"n_cols":7,"rows_kept":134,"cut":false,"hidden":false,"merged":[[62,1,62,6],[64,1,64,6],[44,1,44,6],[60,4,61,6],[59,4,59,6],[5,4,5,6],[57,4,58,6],[0,4,0,6],[1,4,2,6],[21,5,23,6],[56,4,56,6],[3,4,3,5],[26,5,27,6],[9,4,18,6],[29,3,29,4],[6,1,6,6],[23,1,23,2],[30,1,30,6],[132,4,132,5],[105,4,105,6],[106,4,107,6],[109,4,109,6],[110,1,110,6],[112,1,112,6],[108,4,108,6]]}
[null,null,null,null,"Paton Group"]
[null,null,null,null,"787 W. Woodbury Rd., #10\nAltadena, CA 91001\n800.826.0570"]
[]
[null,null,null,null,"Email order form to:"]
[null,null,null,null,"patonpo@patongroup.com"]
[null,null,null,null,"Or fax to: 626.791.1476"]
[null,"MAKERBOT - Credit Card Order Form "]
[]
[null,"Printer Model"]
[null,"Serial #",null,null,"NOTE: Please submit via email or fax.\nThank you in advance for your cooperation."]
[null,"PO #"]
[null,"Order Date"]
[null,"Organization Name (req'd)"]
[null,"Ship to Address (req'd)"]
[null,"Bill to Address (req'd)"]
[null,"Contact Person (req'd)"]
[null,"Phone # (req'd)"]
[null,"Title/Position"]
[null,"E-Mail (req'd)"]
[]
[null,"Name on Credit Card\nConvenience Charge:2% Visa/MC, 3% AMEX"]
[null,"CC Billing Address",null,null,null,"MakerBot\nEDU Order Form"]
[null,"E-Mail"]
[null,"We will call you for card information - please do not email card info. "]
[]
[null,"Shipping Priority","Please specify shipping method i.e. Ground, 3Day, 2Day or Overnight\nNote: Shipments coming from MN",null,null,"Grand Total*",{"$f":"SUM(G104,G54,G132)","v":0}]
[null,"Shipping Account",null,null,null,"*Grand Total doesn't include any applicable taxes or shipping"]
[null,"Additional Instructions\nResin/Material Credit"]
[]
[null,"Part Number","Description","Price per Unit",null,"QTY ordered","Sub Total"]
[null,"Smart Extruders & Supplies"]
[null,"MP07325","Pkg Smart Extruder PLUS",null,199,null,{"$f":"E32*F32","v":0}]
[null,"MP07376","Z18 Pkg Smart Extruder PLUS",null,199,null,0]
[null,"MP06713","Kapton Tape 10-Pack (Replicator 2X)",null,30,null,0]
[null,"MP06077","Build Plate Tape (Replicator 5th Generation)",null,10,null,0]
[null,"MP06460","Build Plate Tape (Replicator Mini)",null,10,null,0]
[null,"MP06626","Build Plate Tape (Replicator Z18)",null,100,null,0]
[null,"MP06627","MakerBot Replicator Z18 Build Plate",null,125,null,0]
[null,"MP06628","MakerBot Replicator Z18 Grease Kit",null,10,null,0]
[null,"MP06681","Build Plate for (Replicator 5th Generation)",null,80,null,0]
[null,"112047-00","MakerBot Replicator+ Grip Surface 3-Pack",null,39.99,null,0]
[null,"112048-00","MakerBot Replicator Mini+ Grip Surface 3-Pack",null,19.989999999999998,null,0]
[null,"112032-00","MakerBot Replicator Mini+ Build Plate Kit",null,39.99,null,0]
[null,"112031-00","MakerBot Replicator+ Build Plate Kit",null,59.99,null,0]
[null,"Modeling Material"]
[null,"MP06572","Large 10 Pack Filament Bundle: Buy 9, Get 10",null,430,null,0]
[null,"MP06237","True Black PLA Filament XXL Spool",null,225,null,0]
[null,"MP06238","True White PLA Filament XXL Spool",null,225,null,0]
[null,"MP06239","Warm Gray PLA Filament XXL Spool",null,225,null,0]
[null,"MP06228","Cool Gray PLA Filament XXL Spool",null,225,null,0]
[null,"MP06591","Small 10 Pack Filament Bundle: Buy 9 Get 10",null,160,null,0]
[null,"MP05188","MakerBot Flexible Filament",null,130,null,0]
[null,"MP05785","Glow in the Dark PLA Large Spool / 1.75mm / 1.8mm Filament",null,130,null,{"$f":"E53*F53","v":0}]
[null,null,null,null,null,"Pg 1 sub-total",{"$f":"SUM(G32:G53)","v":0}]
[]
[]
[null,null,null,null,"Paton Group"]
[null,null,null,null,"787 W. Woodbury Rd., #10\nAltadena, CA 91001\n800.826.0570"]
[]
[null,null,null,null,"Email order form to: patonpo@patongroup.com"]
[null,null,null,null,"Or fax to: 626.791.1476"]
[]
[null,"MAKERBOT - Credit Card Order Form "]
[null,"Part Number","Description",null,"Price","QTY ordered","Sub Total"]
[null,"Modeling Material (cont.)"]
[null,"MP06050","Neon Orange PLA Large Spool / 1.75mm / 1.8mm Filament",null,65,null,{"$f":"E66*F66","v":0}]
[null,"MP06052","Neon Green PLA Large Spool / 1.75mm / 1.8mm Filament",null,65,null,0]
[null,"MP05762","Translucent Red PLA Large Spool / 1.75 / 1.8mm Filament",null,65,null,0]
[null,"MP05764","Translucent Orange PLA Large Spool / 1.75mm / 1.8mm Filament",null,65,null,0]
[null,"MP05758","Translucent Blue PLA Large Spool / 1.75mm / 1.8mm Filament",null,65,null,0]
[null,"MP05766","Translucent Yellow PLA Large Spool / 1.75mm / 1.8mm Filament",null,65,null,0]
[null,"MP05417","MakerBot Dissolvable Filament",null,65,null,0]
[null,"MP05768","Translucent Purple PLA Large Spool / 1.75mm / 1.8mm Filament",null,65,null,0]
[null,"MP05795","Glow in the Dark PLA Small Spool / 1.75mm / 1.8mm Filament",null,50,null,0]
[null,"MP01972","True Green ABS 1kg Spool 1.75mm / 1.8mm Filament",null,48,null,0]
[null,"MP05777","True Orange PLA Large Spool / 1.75mm / 1.8mm Filament",null,48,null,0]
[null,"MP05781","True Yellow PLA Large Spool / 1.75mm / 1.8mm Filament",null,48,null,0]
[null,"MP05776","True Blue PLA Large Spool / 1.75mm / 1.8mm Filament",null,48,null,0]
[null,"MP05778","True Purple PLA Large Spool / 1.75mm / 1.8mm Filament",null,48,null,0]
[null,"MP01978","True Orange ABS 1kg Spool / 1.75mm / 1.8mm Filament",null,48,null,0]
[345,"MP01969","True Black ABS 1kg Spool / 1.75mm / 1.8mm Filament",null,48,null,{"$f":"E81*F81","v":0}]
[null,"MP05775","True Black PLA Large Spool / 1.75mm / 1.8mm Filament",null,48,null,0]
[null,"MP05780","True White PLA Large Spool / 1.75mm / 1.8mm Filament",null,48,null,0]
[null,"MP05783","Warm Gray PLA Large Spool / 1.75mm / 1.8mm Filament    ",null,48,null,0]
[null,"MP05784","Cool Gray PLA Large Spool / 1.75mm / 1.8mm Filament",null,48,null,0]
[null,"MP01973","True Blue ABS 1kg Spool / 1.75mm / 1.8mm Filament",null,48,null,0]
[null,"MP05612","Natural PLA Large Spool / 1.75mm / 1.8mm Filament",null,48,null,0]
[null,"MP05952","True Green PLA Large Spool / 1.75mm / 1.8mm Filament",null,48,null,0]
[null,"MP01970","True White ABS Plastic 1kg Spool - 1.75mm / 1.8mm Filament",null,48,null,0]
[null,"MP02901","True Purple ABS 1kg Spool 1.8mm Filament",null,48,null,0]
[null,"MP02915","True Gray ABS 1kg Spool 1.8mm Filament",null,48,null,0]
[null,"MP05779","True Red PLA Large Spool / 1.75mm / 1.8mm Filament",null,48,null,0]
[null,"MP01975","True Yellow ABS 1kg Spool / 1.75mm / 1.8mm Filament",null,48,null,0]
[null,"MP01971","True Red ABS 1kg Spool - 1.75mm / 1.8mm Filament",null,48,null,{"$f":"E94*F94","v":0}]
[null,"MP06101","Army Green PLA Large Spool / 1.75mm / 1.8mm Filament",null,48,null,0]
[null,"MP06103","Khaki PLA Large Spool / 1.75mm / 1.8mm Filament",null,48,null,0]
[null,"MP06102","Ocean Blue PLA Large Spool / 1.75mm / 1.8mm Filament",null,48,null,0]
[null,"MP06639","True Brown PLA Large Spool / 1.75mm / 1.8mm Filament",null,48,null,{"$f":"E98*F98","v":0}]
[null,"MP01968","Natural ABS 1kg Spool / 1.75mm / 1.8mm Filament",null,43,null,0]
[null,"MP05759","Translucent Blue PLA Small Spool / 1.75mm / 1.8mm Filament",null,25,null,0]
[null,"MP05763","Translucent Red PLA Small Spool / 1.75mm / 1.8mm Filament",null,25,null,0]
[null,"MP05767","Translucent Yellow PLA Small Spool / 1.75mm / 1.8mm Filament",null,25,null,0]
[null,"MP05769","Translucent Purple PLA Small Spool / 1.75mm / 1.8mm Filament",null,25,null,0]
[null,null,null,null,null,"Pg 2 sub-total",{"$f":"SUM(G66:G103)","v":0}]
[]
[null,null,null,null,"Paton Group"]
[null,null,null,null,"787 W. Woodbury Rd., #10\nAltadena, CA 91001\n800.826.0570"]
[]
[null,null,null,null,"Email order form to: patonpo@patongroup.com"]
[null,null,null,null,"Or fax to: 626.791.1476"]
[null,"MAKERBOT - Credit Card Order Form "]
[null,"Part Number","Description",null,"Price","QTY ordered","Sub Total"]
[null,"Modeling Material (cont. 2)"]
[null,"MP06051","Neon Orange PLA Small Spool / 1.75mm / 1.8mm Filament",null,25,null,{"$f":"E114*F114","v":0}]
[null,"MP06053","Neon Green PLA Small Spool / 1.75mm / 1.8mm Filament",null,25,null,0]
[null,"MP05765","Translucent Orange PLA Small Spool / 1.75mm / 1.8mm Filament",null,25,null,0]
[null,"MP05823","True Black PLA Small Spool / 1.75mm / 1.8mm Filament",null,18,null,0]
[null,"MP05796","True Blue PLA Small Spool / 1.75mm / 1.8mm Filament",null,18,null,0]
[null,"MP05790","True White PLA Small Spool / 1.75mm / 1.8mm Filament",null,18,null,0]
[null,"MP05787","True Orange PLA Small Spool / 1.75mm / 1.8mm Filament",null,18,null,0]
[null,"MP05788","True Purple PLA Small Spool / 1.75mm / 1.8mm Filament",null,18,null,0]
[null,"MP05789","True Red PLA Small Spool / 1.75mm / 1.8mm Filament",null,18,null,0]
[null,"MP05791","True Yellow PLA Small Spool / 1.75mm / 1.8mm Filament",null,18,null,0]
[null,"MP05951","True Green PLA Small Spool / 1.75mm / 1.8mm Filament",null,18,null,0]
[null,"MP05792","Natural PLA Small Spool / 1.75mm / 1.8mm Filament",null,18,null,0]
[null,"MP05793","Warm Gray PLA Small Spool / 1.75mm / 1.8mm Filament",null,18,null,0]
[null,"MP05794","Cool Gray PLA Small Spool / 1.75mm / 1.8mm Filament",null,18,null,0]
[null,"MP06115","Army Green PLA Small Spool / 1.75mm / 1.8mm Filament",null,18,null,0]
[null,"MP06116","Ocean Blue PLA Small Spool / 1.75mm / 1.8mm Filament",null,18,null,0]
[null,"MP06117","Khaki PLA Small Spool / 1.75mm / 1.8mm Filament",null,18,null,0]
[null,"MP06642","True Brown PLA Small Spool / 1.75mm / 1.8mm Filament",null,18,null,0]
[null,null,null,null,"Pg 3 sub-total",null,{"$f":"SUM(G114:G131)","v":0}]
[null,null,null,null,"Grand Total*",null,{"$f":"G132+G104+G54","v":0}]
[null,null,null,null,"*Grand Total does not include any applicable taxes or shipping"]